fUST/lending_fUST_20260623
["ID","MTS","AMOUNT","RATE_DAILY","PERIOD"]
[426218992,1782217854000,-151.0,0.00021918,2]
[426218980,1782217854000,-157.505118,0.00021918,2]
[426219033,1782217854000,-188.17735,0.00021918,2]
[426219002,1782217854000,-188.17735,0.00021918,2]
[426219013,1782217854000,-151.0,0.00021918,2]
[426219015,1782217854000,-188.17735,0.00021918,2]
[426219011,1782217854000,-440.641718,0.00021918,2]
[426219017,1782217854000,-151.0,0.00021918,2]
[426219019,1782217854000,-440.641718,0.00021918,2]
[426219021,1782217854000,-188.17735,0.00021918,2]
[426219027,1782217854000,-188.17735,0.00021918,2]
[426219023,1782217854000,-151.0,0.00021918,2]
[426219031,1782217854000,-440.641718,0.00021918,2]
[426219025,1782217854000,-440.641718,0.00021918,2]
[426218965,1782217854000,-157.505118,0.00021918,2]
[426219000,1782217854000,-151.0,0.00021918,2]
[426218962,1782217854000,-157.505118,0.00021918,2]
[426218952,1782217854000,-484.9,0.00021918,2]
[426218968,1782217854000,-157.505118,0.00021918,2]
[426219040,1782217854000,-440.641718,0.00021918,2]
[426218936,1782217854000,-157.505118,0.00021918,2]
[426218935,1782217854000,-484.9,0.00021918,2]
[426218938,1782217854000,-484.9,0.00021918,2]
[426218939,1782217854000,-484.9,0.00021918,2]
[426218940,1782217854000,-157.505118,0.00021918,2]
[426218945,1782217854000,-484.9,0.00021918,2]
[426218943,1782217854000,-157.505118,0.00021918,2]
[426218947,1782217854000,-157.505118,0.00021918,2]
[426218949,1782217854000,-484.9,0.00021918,2]
[426218946,1782217854000,-484.9,0.00021918,2]
[426218950,1782217854000,-157.505118,0.00021918,2]
[426218972,1782217854000,-157.505118,0.00021918,2]
[426218955,1782217854000,-157.505118,0.00021918,2]
[426218953,1782217854000,-157.505118,0.00021918,2]
[426218942,1782217854000,-484.9,0.00021918,2]
[426218956,1782217854000,-484.9,0.00021918,2]
[426218960,1782217854000,-484.9,0.00021918,2]
[426218969,1782217854000,-484.9,0.00021918,2]
[426218970,1782217854000,-484.9,0.00021918,2]
[426218959,1782217854000,-157.505118,0.00021918,2]
[426218974,1782217854000,-484.9,0.00021918,2]
[426218966,1782217854000,-484.9,0.00021918,2]
[426218975,1782217854000,-157.505118,0.00021918,2]
[426218963,1782217854000,-484.9,0.00021918,2]
[426218977,1782217854000,-157.505118,0.00021918,2]
[426218957,1782217854000,-484.9,0.00021918,2]
[426219038,1782217854000,-188.17735,0.00021918,2]
[426219029,1782217854000,-151.0,0.00021918,2]
[426219037,1782217854000,-440.641718,0.00021918,2]
[426219103,1782217854000,-864.0,0.00022591,10]
[426219097,1782217854000,-1389.69,0.00022465,2]
[426219101,1782217854000,-220.0,0.000225,50]
[426219099,1782217854000,-1587.14,0.00022466,5]
[426219105,1782217854000,-151.0,0.000227,5]
[426219102,1782217854000,-186.0,0.00022567,2]
[426219107,1782217854000,-205.15946857,0.00022703,2]
[426219108,1782217854000,-160.0,0.00022705,3]
[426219114,1782217854000,-300.0,0.00022953,30]
[426219111,1782217854000,-1389.82156373,0.00022739,2]
[426219115,1782217854000,-822.29001738,0.00022967,90]
[426219117,1782217854000,-1035.0557642,0.00022974,2]
[426219096,1782217854000,-202.44707097,0.00022465,2]
[426219119,1782217854000,-300.0,0.00022979,30]
[426219122,1782217854000,-638.67439464,0.00023,2]
[426219120,1782217854000,-240.63218341,0.00022979,30]
[426219125,1782217854000,-372.0052153,0.00023014,90]
[426219123,1782217854000,-151.0,0.00023,7]
[426219130,1782217854000,-200.0,0.000231,2]
[426219128,1782217854000,-2966.77736605,0.00023069,2]
[426219127,1782217854000,-390.43303153,0.00023014,90]
[426219132,1782217854000,-278.873636,0.00023107,14]
[426219135,1782217854000,-12384.45188371,0.00023189,30]
[426219133,1782217854000,-150.0,0.00023185,2]
[426219136,1782217854000,-1000.0,0.00023193,30]
[426219034,1782217854000,-282.004804,0.00021918,2]
[426219109,1782217854000,-585.2157437,0.00022739,2]
[426219094,1782217854000,-584.99,0.00022465,2]
[426219113,1782217854000,-405.5,0.000229,2]
[426219092,1782217854000,-151.0,0.000224,8]
[426219042,1782217854000,-188.17735,0.00021918,2]
[426219046,1782217854000,-188.17735,0.00021918,2]
[426219090,1782217854000,-278.207059,0.00022359,14]
[426219048,1782217854000,-440.641718,0.00021918,2]
[426219052,1782217854000,-1587.98,0.00021918,5]
[426219050,1782217854000,-188.17735,0.00021918,2]
[426219060,1782217854000,-787.806054,0.00021964,14]
[426219058,1782217854000,-473.30115141,0.00021918,2]
[426219054,1782217854000,-157.76705047,0.00021918,2]
[426219062,1782217854000,-809.570478,0.00021979,14]
[426219056,1782217854000,-315.53410094,0.00021918,2]
[426219064,1782217854000,-249.791834,0.0002198,14]
[426219072,1782217854000,-1207.43665623,0.00022101,2]
[426219044,1782217854000,-440.641718,0.00021918,2]
[426219079,1782217854000,-584.99,0.00022191,2]
[426219068,1782217854000,-207445.1116245,0.00021998,2]
[426219088,1782217854000,-339.336915,0.00022344,14]
[426219076,1782217854000,-366.425848,0.00022123,14]
[426219081,1782217854000,-1389.69,0.00022191,2]
[426219077,1782217854000,-1743.4363282,0.00022138,2]
[426219070,1782217854000,-1282.0,0.00022,5]
[426219086,1782217854000,-934.090898,0.00022318,14]
[426219082,1782217854000,-1050.884418,0.00022206,14]
[426219074,1782217854000,-1112.46242552,0.00022102,2]
[426219085,1782217854000,-739.713058,0.00022206,14]
[426219066,1782217854000,-787.847257,0.0002198,14]
[426219071,1782217854000,-151.0,0.000221,6]
[426219170,1782217855000,-458.1564556,0.00023238,2]
[426219159,1782217855000,-162.77,0.00023238,2]
[426219172,1782217855000,-458.0290866,0.00023238,2]
[426219169,1782217855000,-151.0,0.00023238,2]
[426219164,1782217855000,-162.77,0.00023238,2]
[426219165,1782217855000,-162.77,0.00023238,2]
[426219162,1782217855000,-162.77,0.00023238,2]
[426219154,1782217855000,-204.37556765,0.00023237,2]
[426219155,1782217855000,-875.18274664,0.00023238,2]
[426219160,1782217855000,-162.77,0.00023238,2]
[426219148,1782217855000,-151.0,0.000232,9]
[426219143,1782217855000,-150.0,0.00023199,2]
[426219151,1782217855000,-160.0,0.000232,30]
[426219152,1782217855000,-182.58268654,0.00023201,2]
[426219149,1782217855000,-417.15472785,0.000232,30]
[426219147,1782217855000,-187.0,0.00023199,2]
[426219140,1782217855000,-150.0,0.00023199,2]
[426219145,1782217855000,-150.0,0.00023199,2]
[426219139,1782217855000,-150.0,0.00023199,2]
[426219142,1782217855000,-150.0,0.00023199,2]
[426219138,1782217855000,-352.64599255,0.00023193,30]
[426219173,1782217855000,-451.8124324,0.00023238,2]
[426219157,1782217855000,-162.79,0.00023238,2]
[426219175,1782217855000,-458.2258714,0.00023238,2]
[426219259,1782217855000,-368.18026884,0.00016274,2]
[426219185,1782217855000,-1379.92760712,0.00023275,2]
[426219266,1782217855000,-352.28033271,0.00021918,2]
[426219261,1782217855000,-399.08418245,0.00017736,2]
[426219176,1782217855000,-458.2258714,0.00023238,2]
[426219265,1782217855000,-188.17735,0.00021918,2]
[426219256,1782217855000,-4631.81973116,0.00016274,2]
[426219227,1782217855000,-334.26,0.0001725,3]
[426219225,1782217855000,-623.48,0.00016438,2]
[426219233,1782217855000,-189.363852,0.00021918,2]
[426219229,1782217855000,-668.52,0.0001862,3]
[426219231,1782217855000,-760.16,0.0001958,2]
[426219199,1782217855000,-357.15348293,0.00023444,2]
[426219263,1782217855000,-251.277866,0.00021918,2]
[426219188,1782217855000,-157.88550914,0.00023288,2]
[426219194,1782217855000,-249.0,0.00023436,2]
[426219167,1782217855000,-458.1564556,0.00023238,2]
[426219178,1782217855000,-458.2258714,0.00023238,2]
[426219180,1782217855000,-458.2258714,0.00023238,2]
[426219183,1782217855000,-458.2258714,0.00023238,2]
[426219186,1782217855000,-1271.38562916,0.00023276,2]
[426219192,1782217855000,-473.65652742,0.00023288,2]
[426219190,1782217855000,-315.77101828,0.00023288,2]
[426219195,1782217855000,-195298.1655,0.00023444,2]
[426219197,1782217855000,-201.95038434,0.00023444,2]
[426219181,1782217855000,-157.6114129,0.00023238,2]
[426231250,1782218781000,151.0,0.000111,13]
[426231303,1782218821000,-151.0,0.000111,13]
[426231327,1782218828000,-117.92333184,0.000111,13]
[426231401,1782218910000,-300.0,0.00019589,3]
[426231405,1782218910000,-1419.0,0.00019598,2]
[426231403,1782218910000,-964.382,0.00019598,2]
[426231404,1782218910000,-1842.0,0.00019598,2]
[426231402,1782218910000,-300.0,0.00019589,3]
[426231398,1782218910000,-160.0,0.00019478,2]
[426231392,1782218910000,-218.50065998,0.00011876,7]
[426231399,1782218910000,-952.83630523,0.000195,2]
[426231397,1782218910000,-300.0,0.00019219,2]
[426231396,1782218910000,-300.0,0.00019219,2]
[426231393,1782218910000,-5000.0,0.0001188,2]
[426231395,1782218910000,-164.67214189,0.00018842,2]
[426231394,1782218910000,-3440.85800161,0.00012,2]
[426231408,1782218910000,-500.0,0.00019626,2]
[426231406,1782218910000,-186.0,0.00019598,2]
[426231400,1782218910000,-300.0,0.00019589,3]
[426231412,1782218910000,-952.83630523,0.000199,2]
[426231407,1782218910000,-445.0,0.00019598,2]
[426231423,1782218910000,-600.0,0.00020229,2]
[426231422,1782218910000,-1854.23585379,0.000202,2]
[426231421,1782218910000,-268.06697422,0.0002015,2]
[426231418,1782218910000,-193.71844991,0.0002015,2]
[426231419,1782218910000,-494.01642566,0.0002015,2]
[426231417,1782218910000,-215.73661315,0.0002015,2]
[426231420,1782218910000,-165.68334842,0.0002015,2]
[426231416,1782218910000,-309.33466497,0.0002015,2]
[426231415,1782218910000,-274.12299324,0.0002015,2]
[426231413,1782218910000,-919.49,0.00019962,2]
[426231410,1782218910000,-329.34428378,0.00019627,2]
[426231409,1782218910000,-154.66733249,0.00019627,2]
[426231411,1782218910000,-952.83630523,0.000197,2]
[426231414,1782218910000,-952.83630523,0.000201,2]
[426231430,1782218911000,-387.43689983,0.00020498,2]
[426231424,1782218911000,-919.49,0.00020236,2]
[426231428,1782218911000,-536.13394845,0.00020482,2]
[426231426,1782218911000,-396.724,0.000203,2]
[426231427,1782218911000,-464.00199746,0.00020482,2]
[426231425,1782218911000,-952.83630523,0.000203,2]
[426231432,1782218911000,-431.4732263,0.00020498,2]
[426231429,1782218911000,-301.11764901,0.00020498,2]
[426231435,1782218911000,-919.49,0.00020784,2]
[426231433,1782218911000,-331.36669685,0.00020498,2]
[426231434,1782218911000,-919.49,0.0002051,2]
[426231436,1782218911000,-919.49,0.00021058,2]
[426231439,1782218911000,-919.49,0.00021606,2]
[426231437,1782218911000,-217.481699,0.00021214,2]
[426231440,1782218911000,-586.8914962,0.00021756,2]
[426231438,1782218911000,-919.49,0.00021332,2]
[426231441,1782218911000,-919.49,0.0002188,2]
[426231431,1782218911000,-167.32058337,0.00020498,2]
[426231528,1782219032000,-165.68334842,0.00020134,2]
[426231519,1782219032000,-329.34428378,0.00019611,2]
[426231524,1782219032000,-38.21705769,0.00020134,2]
[426231522,1782219032000,-612.99,0.00019998,2]
[426231525,1782219032000,-177.51955546,0.00020134,2]
[426231527,1782219032000,-494.01642566,0.00020134,2]
[426231514,1782219032000,-164.67214189,0.00018828,2]
[426231520,1782219032000,-952.83630523,0.000197,2]
[426231518,1782219032000,-160.0,0.000195,2]
[426231516,1782219032000,-160.0,0.00019478,2]
[426231517,1782219032000,-952.83630523,0.000195,2]
[426231515,1782219032000,-417.15472785,0.00019478,2]
[426231521,1782219032000,-952.83630523,0.000199,2]
[426231526,1782219032000,-193.71844991,0.00020134,2]
[426231531,1782219032000,-952.83630523,0.000203,2]
[426231530,1782219032000,-612.99,0.00020272,2]
[426231541,1782219032000,-612.99,0.00021368,2]
[426231536,1782219032000,-612.99,0.00020546,2]
[426231539,1782219032000,-391.92633184,0.00021094,2]
[426231538,1782219032000,-122.4062858,0.00021094,2]
[426231534,1782219032000,-658.68856755,0.00020482,2]
[426231537,1782219032000,-612.99,0.0002082,2]
[426231533,1782219032000,-387.43689983,0.00020482,2]
[426231542,1782219032000,-258.79000345,0.00021642,2]
[426231532,1782219032000,-301.11764901,0.00020482,2]
[426231529,1782219032000,-586.8914962,0.00020145,2]
[426231540,1782219032000,-98.65738236,0.00021094,2]
[426231535,1782219032000,-167.32058337,0.00020482,2]
[426231523,1782219032000,-952.83630523,0.000201,2]
[426231546,1782219038000,-612.99,0.00021916,2]
[426231547,1782219038000,-161.33000345,0.00021918,2]
[426231545,1782219038000,-354.19999655,0.00021642,2]
[426232226,1782219046000,-304.0,0.00021918,2]
[426235969,1782219405000,158.12953039,0.00023288,120]
[426235989,1782219691000,-5000.0,0.00014603,13]
[426235990,1782219708000,-500.0,0.00014751,2]
[426235992,1782219725000,-605.05282241,0.000149,2]
[426235993,1782219742000,-219.52822135,0.00016,2]
[426235994,1782219759000,-156.404,0.0001605,2]
[426236139,1782220232000,-1039.28647808,0.00015513,2]
[426236141,1782220232000,-3526.68244537,0.0001567,2]
[426236140,1782220232000,-12.71352192,0.0001567,2]
[426236170,1782220238000,-154.66733249,0.00019611,2]
[426236166,1782220238000,-150.826,0.00019598,2]
[426236164,1782220238000,-160.0,0.00019467,2]
[426236162,1782220238000,-445.0,0.00019204,2]
[426236160,1782220238000,-1460.60403271,0.0001567,2]
[426236163,1782220238000,-217.481699,0.00019315,2]
[426236161,1782220238000,-200.0,0.00017045,2]
[426236167,1782220238000,-1419.0,0.00019598,2]
[426236165,1782220238000,-219.695,0.00019598,2]
[426236168,1782220238000,-1682.11555539,0.00019598,2]
[426236181,1782220238000,-500.0,0.000199,2]
[426236171,1782220238000,-2216.2646773,0.000198,2]
[426236177,1782220238000,-485.97459966,0.00019899,2]
[426236173,1782220238000,-203.7,0.0001989,3]
[426236174,1782220238000,-500.0,0.00019899,2]
[426236172,1782220238000,-218.50065998,0.00019868,7]
[426236175,1782220238000,-401.51224027,0.00019899,2]
[426236176,1782220238000,-500.0,0.00019899,2]
[426236178,1782220238000,-11356.86737662,0.000199,2]
[426236179,1782220238000,-9171.23233046,0.000199,2]
[426236180,1782220238000,-1583.37339996,0.000199,2]
[426236169,1782220238000,-159.88444461,0.00019598,2]
[426236206,1782220243000,-11988.30682761,0.000199,2]
[426236205,1782220243000,-611.12,0.0001989,3]
[426236215,1782220246000,-900.0,0.000199,2]
[426236214,1782220246000,-6147.1,0.000199,2]
[426236212,1782220246000,-2235.72366096,0.000199,2]
[426236213,1782220246000,-2976.0613849,0.000199,2]
[426236211,1782220246000,-5000.0,0.00019701,2]
[426236348,1782220252000,162.83738051,0.00023,120]
[426236505,1782221438000,-5000.0,0.00015064,13]
[426236506,1782221438000,-500.0,0.00016,10]
[426236508,1782221438000,-180.14861714,0.00018829,2]
[426236507,1782221438000,-153.20331379,0.00018829,2]
[426236509,1782221438000,-186.76542137,0.00018829,2]
[426236514,1782221438000,-500.0,0.00018999,2]
[426236511,1782221438000,-191.5927809,0.00018829,2]
[426236513,1782221438000,-500.0,0.00018999,2]
[426236512,1782221438000,-163.2899013,0.00018832,2]
[426236515,1782221438000,-500.0,0.00018999,2]
[426236516,1782221438000,-500.0,0.00018999,2]
[426236510,1782221438000,-195.28909706,0.00018829,2]
[426236529,1782221439000,-306.40662759,0.00019613,2]
[426236528,1782221439000,-445.0,0.00019589,2]
[426236522,1782221439000,-32448.02334032,0.00019,2]
[426236526,1782221439000,-184.34773151,0.00019178,7]
[426236524,1782221439000,-4142.73652891,0.00019078,2]
[426236520,1782221439000,-500.0,0.00018999,2]
[426236523,1782221439000,-77260.19665061,0.00019,2]
[426236527,1782221439000,-338.13429281,0.000195,2]
[426236521,1782221439000,-587.06938489,0.00018999,2]
[426236517,1782221439000,-500.0,0.00018999,2]
[426236519,1782221439000,-500.0,0.00018999,2]
[426236518,1782221439000,-455.42308505,0.00018999,2]
[426236531,1782221439000,-171.54761438,0.00019613,2]
[426236525,1782221439000,-189.8954589,0.00019142,2]
[426236534,1782221439000,-170.61182922,0.00019613,2]
[426236547,1782221439000,-338.13429281,0.000197,2]
[426236533,1782221439000,-165.66383238,0.00019613,2]
[426236548,1782221439000,-101985.39775451,0.000197,2]
[426236545,1782221439000,-437.296,0.00019699,2]
[426236544,1782221439000,-715.16,0.00019696,2]
[426236546,1782221439000,-300.0,0.00019699,3]
[426236543,1782221439000,-407.4,0.0001969,3]
[426236542,1782221439000,-243.05118109,0.00019616,2]
[426236535,1782221439000,-179.16917241,0.00019613,2]
[426236540,1782221439000,-383.18556179,0.00019613,2]
[426236538,1782221439000,-390.57819412,0.00019613,2]
[426236539,1782221439000,-185.01240912,0.00019613,2]
[426236537,1782221439000,-373.53084273,0.00019613,2]
[426236536,1782221439000,-182.00671229,0.00019613,2]
[426236530,1782221439000,-186.16553599,0.00019613,2]
[426236532,1782221439000,-360.29723427,0.00019613,2]
[426236541,1782221439000,-326.5798026,0.00019616,2]
[426236613,1782221440000,-4396.50004988,0.000197,2]
[426236614,1782221440000,-2197.45985726,0.000197,2]
[426236612,1782221440000,-31021.5,0.000197,2]
[426236622,1782221443000,-7297.48766017,0.000197,2]
[426236625,1782221447000,-288.87684538,0.000197,2]
[426236626,1782221447000,-9007.08166497,0.000197,2]
[426241494,1782221501000,530.5341734,0.000181,2]
[426251507,1782221784000,-7393.84167352,0.0002457,120]
[426251502,1782221784000,-33.8677644,0.00024161,120]
[426251501,1782221784000,-166.1322356,0.00024088,120]
[426251500,1782221784000,-33.8677644,0.00024088,120]
[426251503,1782221784000,-166.1322356,0.00024161,120]
[426251505,1782221784000,-620.01304544,0.00024391,120]
[426251506,1782221784000,-200.0,0.00024526,120]
[426251504,1782221784000,-200.0,0.000242,120]
[426251499,1782221784000,-166.1322356,0.00024,120]
[426251699,1782222633000,-16.12962852,0.00017422,2]
[426251693,1782222633000,-4035.68062222,0.00014931,13]
[426251695,1782222633000,-658.89887298,0.00014931,13]
[426251694,1782222633000,-305.4205048,0.00014931,13]
[426251696,1782222633000,-808.899,0.00015082,13]
[426251701,1782222633000,-539.69112187,0.000181,2]
[426251697,1782222633000,-151.0,0.00015234,2]
[426251698,1782222633000,-769.15864598,0.00017422,2]
[426251703,1782222633000,-311.78261463,0.00018424,2]
[426251702,1782222633000,-160.0,0.00018421,2]
[426251705,1782222633000,-762.82019826,0.000186,2]
[426251704,1782222633000,-38.05438537,0.00018424,2]
[426251707,1782222633000,-539.4315123,0.000186,2]
[426251706,1782222633000,-2580.49130645,0.000186,2]
[426251700,1782222633000,-187.47759,0.00017908,2]
[426251726,1782222638000,-2186.65055056,0.00018414,13]
[426251725,1782222638000,-2813.34944944,0.00018414,13]
[426251728,1782222639000,-31317.64740207,0.000186,2]
[426251727,1782222639000,-11965.04791757,0.000186,2]
[426251729,1782222639000,-738.12766339,0.000186,2]
[426251731,1782222639000,-983.59412008,0.000186,2]
[426251730,1782222639000,-1178.98896994,0.000186,2]
[426251733,1782222644000,-7379.06770244,0.000186,2]
[426251734,1782222644000,-619.52260092,0.000186,2]
[426251735,1782222644000,-17640.16221869,0.000186,2]
[426251738,1782222644000,-2070.0,0.000186,2]
[426251736,1782222644000,-613.29562705,0.000186,2]
[426251737,1782222644000,-3745.2009488,0.000186,2]
[426251740,1782222644000,-2110.12832696,0.000186,2]
[426251739,1782222644000,-768.45055747,0.000186,2]
[426251773,1782222648000,-151.0,0.000187,2]
[426251747,1782222648000,-1482.61,0.00018414,13]
[426251750,1782222648000,-160.82853,0.00018599,2]
[426251749,1782222648000,-500.0,0.00018599,2]
[426251748,1782222648000,-88.86526289,0.00018414,13]
[426251751,1782222648000,-339.17147,0.00018599,2]
[426251754,1782222648000,-383.93589834,0.00018599,2]
[426251752,1782222648000,-217.41285777,0.00018599,2]
[426251755,1782222648000,-500.0,0.00018599,2]
[426251756,1782222648000,-500.0,0.00018599,2]
[426251757,1782222648000,-500.0,0.00018599,2]
[426251753,1782222648000,-260.94856943,0.00018599,2]
[426251764,1782222648000,-500.0,0.00018599,2]
[426251761,1782222648000,-500.0,0.00018599,2]
[426251760,1782222648000,-561.51313222,0.00018599,2]
[426251762,1782222648000,-500.0,0.00018599,2]
[426251759,1782222648000,-500.0,0.00018599,2]
[426251765,1782222648000,-555787.68760801,0.000186,2]
[426251766,1782222648000,-1482.61,0.00018699,2]
[426251768,1782222648000,-3624.89446284,0.00018699,2]
[426251769,1782222648000,-500.0,0.00018699,2]
[426251767,1782222648000,-500.0,0.00018699,2]
[426251770,1782222648000,-500.0,0.00018699,2]
[426251771,1782222648000,-500.0,0.00018699,2]
[426251774,1782222648000,-196596.55302248,0.000187,2]
[426251775,1782222648000,-218438.33466643,0.000187,2]
[426251772,1782222648000,-151.0,0.000187,2]
[426251758,1782222648000,-500.0,0.00018599,2]
[426251763,1782222648000,-500.0,0.00018599,2]
[426251776,1782222649000,-954.63932051,0.000187,2]
[426251778,1782222649000,-5128.70757169,0.000187,2]
[426251780,1782222649000,-1688.74295023,0.000187,2]
[426251777,1782222649000,-5165.18888841,0.000187,2]
[426251821,1782222726000,-500.00455658,0.0001,2]
[426251822,1782222727000,-605.21789017,0.0001,2]
[426251823,1782222729000,-500.0,0.0001,2]
[426251824,1782222730000,-500.0,0.0001,2]
[426251825,1782222731000,-589.1199704,0.0001,2]
[426251826,1782222732000,-500.0,0.0001,2]
[426251827,1782222733000,-500.0,0.0001,2]
[426251864,1782223050000,-564.97383072,9.415e-05,2]
[426251865,1782223051000,-485.42221522,9.415e-05,2]
[426251866,1782223052000,-358.4433682,9.415e-05,2]
[426251867,1782223053000,-579.62967841,9.415e-05,2]
[426251868,1782223055000,6467.91147834,7.6e-05,2]
[426251876,1782223143000,-2947.47,9.415e-05,2]
[426251879,1782223177000,-4589.63909255,9.51e-05,2]
[426251878,1782223177000,-64.06090745,9.415e-05,2]
[426251883,1782223226000,-804.63180249,9.321e-05,2]
[426251884,1782223227000,-991.972,9.321e-05,2]
[426251886,1782223246000,-4008.03,9.228e-05,2]
[426251888,1782223261000,-985.112,9.228e-05,2]
[426251892,1782223288000,-6.858,9.228e-05,2]
[426251893,1782223288000,-1105.132,9.321e-05,2]
[426251895,1782223315000,-1907.15,9.228e-05,2]
[426251896,1782223339000,-441.894,9.228e-05,2]
[426251899,1782223363000,-959.65,9.228e-05,2]
[426251900,1782223386000,-1060.31,9.228e-05,2]
[426251902,1782223407000,-5000.0,9.136e-05,2]
[426251905,1782223496000,-742.52568304,8.955e-05,2]
[426251908,1782223536000,-2358.108,8.955e-05,2]
[426251921,1782223690000,5000.0,8.604e-05,2]
[426251922,1782223711000,5000.0,8.604e-05,2]
[426251924,1782223733000,5000.0,8.604e-05,2]
[426251925,1782223755000,5000.0,8.604e-05,2]
[426251931,1782223776000,5000.0,8.604e-05,2]
[426251951,1782223798000,5000.0,8.604e-05,2]
[426251952,1782223806000,5000.0,8.604e-05,2]
[426251953,1782223815000,2233.57189747,8.604e-05,2]
[426252008,1782223831000,-576.79787074,9.136e-05,2]
[426252007,1782223831000,-433.45811007,9.136e-05,2]
[426252005,1782223831000,-203.72516796,9.134e-05,7]
[426252006,1782223831000,-2230.92071206,9.136e-05,2]
[426252129,1782223838000,-240.494186,0.00013699,2]
[426252137,1782223838000,-202.20887712,0.0001595,2]
[426252135,1782223838000,-10001.8696263,0.00014593,2]
[426252139,1782223838000,-1290.90429564,0.00016024,7]
[426252150,1782223838000,-2351.63121912,0.00016344,7]
[426252149,1782223838000,-1290.90429564,0.00016344,7]
[426252145,1782223838000,-767.19795145,0.00016025,2]
[426252147,1782223838000,-3171.78265495,0.00016338,2]
[426252141,1782223838000,-2351.63121912,0.00016024,7]
[426252143,1782223838000,-318.602,0.00016025,2]
[426252156,1782223838000,-500.0,0.00016438,2]
[426252158,1782223838000,-500.0,0.00016438,2]
[426252153,1782223838000,-500.0,0.00016438,2]
[426252133,1782223838000,-562.39034802,0.00014592,2]
[426252122,1782223838000,-1074.71748107,0.0001,2]
[426252119,1782223838000,-389.81709099,0.0001,2]
[426252117,1782223838000,-389.81709099,0.0001,2]
[426252124,1782223838000,-1074.71748107,0.0001,2]
[426252128,1782223838000,-2173.66101496,0.000115,2]
[426252120,1782223838000,-1074.71748107,0.0001,2]
[426252126,1782223838000,-286.33604197,0.0001,2]
[426252113,1782223838000,-305.58775197,9.671e-05,7]
[426252110,1782223838000,-5000.0,9.228e-05,2]
[426252115,1782223838000,-239.23065035,0.0001,2]
[426252111,1782223838000,-323.63548472,9.321e-05,2]
[426252108,1782223838000,-645.26869324,9.136e-05,2]
[426252098,1782223838000,-1113.55461389,9.136e-05,2]
[426252155,1782223838000,-500.0,0.00016438,2]
[426252131,1782223838000,-236.14603237,0.00014592,2]
[426252160,1782223838000,-500.0,0.00016438,2]
[426252187,1782223838000,-500.0,0.00016712,2]
[426252166,1782223838000,-500.0,0.00016438,2]
[426252164,1782223838000,-500.0,0.00016438,2]
[426252212,1782223838000,-163.16910222,0.00016825,7]
[426252216,1782223838000,-351.69263321,0.00016825,7]
[426252205,1782223838000,-463.89819945,0.00016712,2]
[426252208,1782223838000,-500.0,0.00016438,2]
[426252206,1782223838000,-408.78348442,0.00016825,7]
[426252203,1782223838000,-500.0,0.00016712,2]
[426252204,1782223838000,-39.05649474,0.00016712,2]
[426252202,1782223838000,-500.0,0.00016712,2]
[426252190,1782223838000,-500.0,0.00016712,2]
[426252194,1782223838000,-500.0,0.00016712,2]
[426252196,1782223838000,-500.0,0.00016712,2]
[426252192,1782223838000,-500.0,0.00016712,2]
[426252179,1782223838000,-500.0,0.00016438,2]
[426252210,1782223838000,-718.951709,0.00016825,7]
[426252200,1782223838000,-722.52,0.00016712,2]
[426252201,1782223838000,-500.0,0.00016712,2]
[426252168,1782223838000,-500.0,0.00016438,2]
[426252170,1782223838000,-500.0,0.00016438,2]
[426252172,1782223838000,-500.0,0.00016438,2]
[426252177,1782223838000,-500.0,0.00016438,2]
[426252176,1782223838000,-722.52,0.00016438,2]
[426252162,1782223838000,-500.0,0.00016438,2]
[426252181,1782223838000,-500.0,0.00016438,2]